[Event "Marshall CC U2400 February 2024"]
[Site "New York"]
[Date "2024.02.17"]
[Round "1.1"]
[White "Sarkar, Justin"]
[Black "Ulloa Centeno, Leandro Nicolas"]
[Result "1-0"]
[ECO "E97"]
[WhiteElo "2272"]
[BlackElo "1647"]
[Annotator "TA"]
[PlyCount "64"]
[EventDate "2024.02.16"]
[EventType "swiss"]
[EventCountry "USA"]
[SourceTitle "playchess.com"]
[Source "ChessBase"]
[SourceQuality "1"]
[TimeControl "5400+30"]

{[%evp 17,64,24,28,0,8,2,1,-42,-27,-28,100,104,95,24,100,25,26,33,54,52,59,52,55,6,31,6,30,24,33,47,36,33,230,229,247,214,373,349,422,433,412,405,420,398,413,414,539,530,2777]} 1. d4 {[%emt 0:05:17]} Nf6 {[%emt 0:00:14]} 2. c4 {[%emt 0:00:20]} g6 {[%emt 0:00:11]} 3. Nc3 {[%emt 0:01:52]} Bg7 {[%emt 0:00:10]} 4. e4 {[%emt 0:00:03]} d6 {[%emt 0:00:09]} 5. Nf3 {[%emt 0:02:27]} O-O {[%emt 0:00:12]} 6. Be2 {[%emt 0:00:04]} e5 {[%emt 0:00:07]} 7. O-O {[%emt 0:00:19]} Nc6 {[%emt 0:00:30]} 8. d5 {[%emt 0:09:50]} Ne7 {[%emt 0:00:10]} 9. Kh1 {[%emt 0:00:03]} Ne8 {[%emt 0:02:18]} 10. Rg1 {[%emt 0:11:13]} f5 {[%emt 0:02:05]} 11. Ng5 {[%emt 0:00:20]} h6 {[%emt 0:13:25]} 12. Ne6 {[%emt 0:01:36] The position is equal.} Bxe6 {[%emt 0:00:08]} 13. dxe6 {[%emt 0:00:02]} Nf6 {[%emt 0:04:14]} (13... c6 $11 {keeps the balance.}) 14. exf5 $16 {[%emt 0:11:22] White is more active.} Nxf5 {[%emt 0:13:59] [#]} 15. Bd3 {[%emt 0:00:18]} ({Better is} 15. g4 $1 $16 {[%cal Rg4f5]} Nd4 16. g5 hxg5 17. Rxg5) 15... Qe8 {[%emt 0:07:28] [#]} (15... Ne7 $11) 16. Nd5 {[%emt 0:02:52]} (16. g4 $1 $16 {[%cal Rg4f5]} Nh4 17. f3) 16... Nxd5 $11 {[%emt 0:07:26]} 17. cxd5 {[%emt 0:00:04]} c6 {[%emt 0:06:49]} 18. Be4 {[%emt 0:01:57]} Rd8 {[%emt 0:05:41]} 19. Be3 {[%emt 0:05:11][%cal Bc1e3,Be3a7,Ba7b6,Bb6d8][%mdl 32]} Ne7 $1 {[%emt 0:05:30]} 20. a4 {[%emt 0:05:11]} (20. Qb3 $14) 20... Rf6 {[%emt 0:07:03]} 21. Bxa7 {[%emt 0:02:49]} Nxd5 {[%emt 0:02:37]} (21... cxd5 {simplifies} 22. Bxd5 Nxd5 23. Qxd5 Qxe6 24. Rgd1 Rd7) 22. Bxd5 {[%emt 0:00:04]} cxd5 {[%emt 0:00:05]} 23. Bb6 $36 {[%emt 0:20:46][%mdl 2048] White has the initiative.} Rc8 {[%emt 0:00:13]} 24. Qxd5 {[%emt 0:00:08] Hoping for e7+.} Rc6 $2 {[%emt 0:00:09] Black cannot hold the game after this.} (24... Qc6 $1 $14 25. Qxc6 Rxc6) 25. e7+ $18 {[%emt 0:02:41]} Kh7 {[%emt 0:00:49]} 26. Bd8 {[%emt 0:00:16] b4 would now be deadly.} Rf7 $2 {[%emt 0:02:56]} (26... Rf5 {might work better.} 27. Rac1 e4 28. Qxe4 d5) 27. b4 {[%emt 0:01:41][%cal Bb2b4,Bb4b5][%mdl 32] aiming for b5.} Bf6 {[%emt 0:00:53]} 28. b5 {[%emt 0:00:28]} Rc5 {[%emt 0:01:10]} 29. Qxb7 {[%emt 0:03:24]} Bxe7 {[%emt 0:02:46]} 30. Bxe7 {[%emt 0:00:08]} Rxe7 {[%emt 0:02:55]} 31. Qb6 {[%emt 0:00:07]} Qd7 {[%emt 0:02:22]} 32. Rgd1 {[%emt 0:00:17]} Qd8 {[%emt 0:03:45] Weighted Error Value: White=0.16 (very precise) /Black=0.43.  Loses game:     	---       	Black=1      Mistake:       	White=3     	Black=3      Inaccurate:     	White=1     	Black=2      OK:         	White=8     	Black=6      Best:        	White=3     	Black=1      Strong:       	---       	Black=1} 1-0

[Event "Marshall CC U2400 February 2024"]
[Site "New York"]
[Date "2024.02.17"]
[Round "1.2"]
[White "Adelson, Serge"]
[Black "Jiang, Jason"]
[Result "0-1"]
[ECO "E14"]
[WhiteElo "1699"]
[BlackElo "1864"]
[Annotator "NA RC"]
[PlyCount "80"]
[EventDate "2024.02.16"]
[EventType "swiss"]
[EventCountry "USA"]
[SourceTitle "playchess.com"]
[Source "ChessBase"]
[SourceQuality "1"]
[TimeControl "5400+30"]

1. d4 {[%emt 0:03:47]} Nf6 {[%emt 0:00:14]} 2. c4 {[%emt 0:00:14]} e6 {[%emt 0:00:10]} 3. Nf3 {[%emt 0:00:22]} b6 {[%emt 0:00:29]} 4. e3 {[%emt 0:03:05]} Bb7 {[%emt 0:02:23]} 5. Be2 {[%emt 0:00:11]} Bb4+ {[%emt 0:01:00]} 6. Bd2 {[%emt 0:00:28]} Be7 {[%emt 0:00:56]} 7. Nc3 {[%emt 0:01:02]} O-O {[%emt 0:01:38]} 8. O-O {[%emt 0:00:31]} d5 {[%emt 0:01:22]} 9. Ne5 {[%emt 0:01:26]} c5 {[%emt 0:03:31]} 10. cxd5 {[%emt 0:03:33]} exd5 {[%emt 0:07:36]} 11. Rc1 {[%emt 0:02:46]} Nc6 {[%emt 0:02:21]} 12. Nxc6 {[%emt 0:01:47]} Bxc6 {[%emt 0:00:11]} 13. Be1 {[%emt 0:05:22]} Qd7 {[%emt 0:03:36]} 14. a4 {[%emt 0:03:51]} a6 {[%emt 0:10:15]} 15. b3 {[%emt 0:04:23]} Rfe8 {[%emt 0:04:36]} 16. Qc2 {[%emt 0:04:00]} Bb7 {[%emt 0:09:15]} 17. Bd3 {[%emt 0:01:13]} g6 {[%emt 0:02:11]} 18. Qa2 {[%emt 0:03:53]} Nh5 {[%emt 0:04:24]} 19. Ne2 {[%emt 0:00:32]} Qc6 {[%emt 0:04:04]} 20. Ng3 {[%emt 0:05:18]} Nxg3 {[%emt 0:02:12]} 21. hxg3 {[%emt 0:00:09]} c4 {[%emt 0:04:57]} 22. Be2 {[%emt 0:00:44]} cxb3 {[%emt 0:06:54]} 23. Qb2 {[%emt 0:01:01]} Qxa4 {[%emt 0:01:49]} 24. Ra1 {[%emt 0:00:52]} Qc6 {[%emt 0:02:22]} 25. Qxb3 {[%emt 0:00:15]} Rec8 {[%emt 0:01:13]} 26. Bg4 {[%emt 0:01:03]} f5 {[%emt 0:02:22]} 27. Bf3 {[%emt 0:00:06]} a5 {[%emt 0:01:29]} 28. Bd2 {[%emt 0:00:31]} a4 {[%emt 0:00:42]} 29. Qa2 {[%emt 0:00:19]} b5 {[%emt 0:03:15]} 30. Rfc1 {[%emt 0:00:35]} Qd7 {[%emt 0:01:19]} 31. Be2 {[%emt 0:03:15]} b4 {[%emt 0:01:16]} 32. Qb2 {[%emt 0:00:36]} b3 {[%emt 0:00:54]} 33. Rc3 {[%emt 0:01:38]} Rxc3 {[%emt 0:00:28]} 34. Qxc3 {[%emt 0:00:57]} Qc6 {[%emt 0:01:19]} 35. Qb2 {[%emt 0:01:02]} Ba6 {[%emt 0:01:00]} 36. Rc1 {[%emt 0:00:16]} Qb7 {[%emt 0:01:02]} 37. Ba5 {[%emt 0:00:30]} a3 {[%emt 0:00:28]} 38. Qd2 {[%emt 0:04:05]} Bxe2 {[%emt 0:01:31]} 39. Rc7 {[%emt 0:01:01]} Qxc7 {[%emt 0:00:15]} 40. Bxc7 {[%emt 0:00:05]} a2 {[%emt 0:00:14]} 0-1

[Event "Marshall CC U2400 February 2024"]
[Site "New York"]
[Date "2024.02.17"]
[Round "1.3"]
[White "Nkululeko, Nkosi"]
[Black "Schaefer, Sasha Milo"]
[Result "1/2-1/2"]
[ECO "E01"]
[WhiteElo "1867"]
[BlackElo "1633"]
[Annotator "NA RC"]
[PlyCount "107"]
[EventDate "2024.02.16"]
[EventType "swiss"]
[EventCountry "USA"]
[SourceTitle "playchess.com"]
[Source "ChessBase"]
[SourceQuality "1"]
[TimeControl "5400+30"]

1. d4 {[%emt 0:14:09]} d5 {[%emt 0:00:03]} 2. c4 {[%emt 0:00:06]} e6 {[%emt 0:00:02]} 3. Nf3 {[%emt 0:00:10]} Nf6 {[%emt 0:00:03]} 4. g3 {[%emt 0:00:14]} dxc4 {[%emt 0:00:05]} 5. Qa4+ {[%emt 0:00:30]} Bd7 {[%emt 0:00:57]} 6. Qxc4 {[%emt 0:00:06]} b5 {[%emt 0:00:19]} 7. Qc2 {[%emt 0:00:40]} c5 {[%emt 0:01:20]} 8. Bg2 {[%emt 0:03:40]} Na6 {[%emt 0:02:17]} 9. O-O {[%emt 0:04:18]} Rc8 {[%emt 0:00:17]} 10. Qd1 {[%emt 0:00:50]} Bc6 {[%emt 0:01:23]} 11. a4 {[%emt 0:14:56]} b4 {[%emt 0:00:32]} 12. b3 {[%emt 0:06:02]} Bxf3 {[%emt 0:01:58]} 13. Bxf3 {[%emt 0:00:10]} Qd7 {[%emt 0:01:35]} 14. Qd3 {[%emt 0:02:15]} Nc7 {[%emt 0:00:14]} 15. e4 {[%emt 0:08:38]} Qxd4 {[%emt 0:01:27]} 16. Qxd4 {[%emt 0:00:30]} cxd4 {[%emt 0:00:07]} 17. Bf4 {[%emt 0:06:03]} Nd7 {[%emt 0:03:01]} 18. e5 {[%emt 0:03:57]} g5 {[%emt 0:04:02]} 19. Bxg5 {[%emt 0:01:06]} Bg7 {[%emt 0:02:13]} 20. Bb7 {[%emt 0:02:14]} Rb8 {[%emt 0:00:23]} 21. Bc6 {[%emt 0:00:20]} Bxe5 {[%emt 0:01:13]} 22. Nd2 {[%emt 0:01:53]} f6 {[%emt 0:03:56]} 23. Nc4 {[%emt 0:00:02]} Ke7 {[%emt 0:03:12]} 24. Bxd7 {[%emt 0:00:29]} Kxd7 {[%emt 0:00:08]} 25. Nxe5+ {[%emt 0:00:05]} fxe5 {[%emt 0:00:06]} 26. Bf6 {[%emt 0:00:14]} Rhf8 {[%emt 0:02:17]} 27. Bxe5 {[%emt 0:00:40]} Rf3 {[%emt 0:00:27]} 28. Rab1 {[%emt 0:10:20]} d3 {[%emt 0:01:52]} 29. Kg2 {[%emt 0:07:03]} Rbf8 {[%emt 0:02:42]} 30. Bf4 {[%emt 0:00:57]} R3xf4 {[%emt 0:00:10]} 31. gxf4 {[%emt 0:00:10]} Rxf4 {[%emt 0:00:30]} 32. Rfd1 {[%emt 0:04:11]} Rd4 {[%emt 0:00:18]} 33. Rbc1 {[%emt 0:01:52]} Nd5 {[%emt 0:04:08]} 34. Rc4 {[%emt 0:01:49]} Rxc4 {[%emt 0:00:10]} 35. bxc4 {[%emt 0:00:05]} Nc3 {[%emt 0:00:19]} 36. Rxd3+ {[%emt 0:00:41]} Kc6 {[%emt 0:00:10]} 37. Rd8 {[%emt 0:02:03]} Nxa4 {[%emt 0:02:12]} 38. Re8 {[%emt 0:03:52]} Kd6 {[%emt 0:11:11]} 39. Ra8 {[%emt 0:01:08]} b3 {[%emt 0:00:35]} 40. Rxa7 {[%emt 0:00:46]} b2 {[%emt 0:00:12]} 41. Rb7 {[%emt 0:00:14]} Kc5 {[%emt 0:00:39]} 42. Rb5+ {[%emt 0:01:03]} Kxc4 {[%emt 0:00:23]} 43. Rb8 {[%emt 0:00:11]} Kc3 {[%emt 0:01:25]} 44. Rb5 {[%emt 0:01:07]} Kc2 {[%emt 0:01:21]} 45. Kf3 {[%emt 0:00:37]} b1=Q {[%emt 0:00:29]} 46. Rxb1 {[%emt 0:00:05]} Kxb1 {[%emt 0:00:07]} 47. Ke4 {[%emt 0:00:35]} Nc5+ {[%emt 0:07:48]} 48. Ke5 {[%emt 0:00:23]} Kc2 {[%emt 0:01:19]} 49. Kd6 {[%emt 0:00:50]} Kd3 {[%emt 0:04:20]} 50. Kxc5 {[%emt 0:00:12]} Ke4 {[%emt 0:01:28]} 51. Kd6 {[%emt 0:00:26]} e5 {[%emt 0:09:19]} 52. Ke6 {[%emt 0:00:28]} Kf4 {[%emt 0:01:15]} 53. f3 {[%emt 0:00:48]} h5 {[%emt 0:01:56]} 54. h4 {[%emt 0:01:17]} 1/2-1/2

[Event "Marshall CC U2400 February 2024"]
[Site "New York"]
[Date "2024.02.17"]
[Round "1.4"]
[White "Ulloa Grez, Luis"]
[Black "Gutnik, Aleksandr"]
[Result "0-1"]
[ECO "D13"]
[WhiteElo "2048"]
[BlackElo "1956"]
[Annotator "RC"]
[PlyCount "108"]
[EventDate "2024.02.16"]
[EventType "swiss"]
[EventCountry "USA"]
[SourceTitle "playchess.com"]
[Source "ChessBase"]
[SourceQuality "1"]
[TimeControl "5400+30"]

1. c4 {[%emt 0:00:03]} c6 {[%emt 0:00:11]} 2. d4 {[%emt 0:00:36]} d5 {[%emt 0:00:09]} 3. cxd5 {[%emt 0:00:56]} cxd5 {[%emt 0:00:08]} 4. Nf3 {[%emt 0:00:28]} Nc6 {[%emt 0:00:21]} 5. Nc3 {[%emt 0:00:53]} e6 {[%emt 0:01:33]} 6. e3 {[%emt 0:00:58]} Nf6 {[%emt 0:00:45]} 7. Be2 {[%emt 0:01:42]} Bd6 {[%emt 0:00:50]} 8. O-O {[%emt 0:01:00]} O-O {[%emt 0:00:17]} 9. Re1 {[%emt 0:05:19]} a6 {[%emt 0:04:41]} 10. a3 {[%emt 0:02:43]} b5 {[%emt 0:01:35]} 11. Bd2 {[%emt 0:02:41]} Bb7 {[%emt 0:00:39]} 12. Bd3 {[%emt 0:03:17]} Na5 {[%emt 0:07:36]} 13. b4 {[%emt 0:06:02]} Nc4 {[%emt 0:01:41]} 14. Bxc4 {[%emt 0:01:04]} bxc4 {[%emt 0:00:42]} 15. Na4 {[%emt 0:02:27]} Ne4 {[%emt 0:08:00]} 16. Nc5 {[%emt 0:02:30]} Bc6 {[%emt 0:04:40]} 17. Qc2 {[%emt 0:11:02]} Bxc5 {[%emt 0:09:29]} 18. dxc5 {[%emt 0:04:12]} Qf6 {[%emt 0:01:24]} 19. Rac1 {[%emt 0:08:23]} e5 {[%emt 0:16:56]} 20. Bc3 {[%emt 0:02:21]} Nxc3 {[%emt 0:02:21]} 21. Qxc3 {[%emt 0:00:11]} Rfe8 {[%emt 0:00:20]} 22. e4 {[%emt 0:03:37]} dxe4 {[%emt 0:03:58]} 23. Nd2 {[%emt 0:00:11]} Qg6 {[%emt 0:08:58]} 24. Nxc4 {[%emt 0:10:07]} e3 {[%emt 0:00:38]} 25. Nxe3 {[%emt 0:00:06]} f5 {[%emt 0:00:30]} 26. Rcd1 {[%emt 0:02:27]} Re6 {[%emt 0:04:21]} 27. Rd6 {[%emt 0:06:01]} Rae8 {[%emt 0:00:37]} 28. Red1 {[%emt 0:09:03]} f4 {[%emt 0:01:40]} 29. Rxe6 {[%emt 0:00:15]} Rxe6 {[%emt 0:00:23]} 30. Nd5 {[%emt 0:00:50]} Bxd5 {[%emt 0:00:17]} 31. f3 {[%emt 0:00:20]} Bc6 {[%emt 0:00:53]} 32. Qb3 {[%emt 0:00:50]} Qf7 {[%emt 0:01:42]} 33. Qd3 {[%emt 0:00:11]} Bb5 {[%emt 0:01:01]} 34. Qd8+ {[%emt 0:00:19]} Re8 {[%emt 0:00:16]} 35. Qb6 {[%emt 0:00:13]} Qb3 {[%emt 0:00:58]} 36. Qd6 {[%emt 0:00:24]} Qe6 {[%emt 0:03:24]} 37. Qc7 {[%emt 0:00:22]} h6 {[%emt 0:01:25]} 38. h3 {[%emt 0:00:22]} Kh7 {[%emt 0:00:17]} 39. Rd6 {[%emt 0:01:15]} Qc4 {[%emt 0:00:53]} 40. c6 {[%emt 0:01:12]} Re6 {[%emt 0:01:16]} 41. a4 {[%emt 0:00:48]} Rxd6 {[%emt 0:00:54]} 42. Qxd6 {[%emt 0:00:05]} Bxc6 {[%emt 0:00:31]} 43. Qxe5 {[%emt 0:00:22]} Bxa4 {[%emt 0:00:43]} 44. Qf5+ {[%emt 0:00:15]} Kg8 {[%emt 0:00:16]} 45. Qa5 {[%emt 0:00:30]} Bb5 {[%emt 0:00:38]} 46. Kh2 {[%emt 0:00:22]} Qd4 {[%emt 0:00:25]} 47. Qa2+ {[%emt 0:00:27]} Kh8 {[%emt 0:00:12]} 48. Qa5 {[%emt 0:00:05]} Qd2 {[%emt 0:00:28]} 49. Qc7 {[%emt 0:00:31]} Bd3 {[%emt 0:02:32]} 50. Qd6 {[%emt 0:00:51]} Kh7 {[%emt 0:00:11]} 51. Qd4 {[%emt 0:00:26]} Qe3 {[%emt 0:00:38]} 52. Qd6 {[%emt 0:00:19]} Bf1 {[%emt 0:00:39]} 53. Qd5 {[%emt 0:01:17]} Qd3 {[%emt 0:00:29]} 54. Qe5 {[%emt 0:00:12]} Qc2 {[%emt 0:00:17]} 0-1

[Event "Marshall CC U2400 February 2024"]
[Site "New York"]
[Date "2024.02.17"]
[Round "1.5"]
[White "Lu, Dazhen"]
[Black "Rosenthal, Max Manuel"]
[Result "1-0"]
[ECO "A09"]
[WhiteElo "1595"]
[BlackElo "1949"]
[Annotator "RC"]
[PlyCount "111"]
[EventDate "2024.02.16"]
[EventType "swiss"]
[EventCountry "USA"]
[SourceTitle "playchess.com"]
[Source "ChessBase"]
[SourceQuality "1"]
[TimeControl "5400+30"]

1. Nf3 {[%emt 0:00:12]} d5 {[%emt 0:16:14]} 2. c4 {[%emt 0:00:08]} d4 {[%emt 0:00:17]} 3. b4 {[%emt 0:00:07]} f6 {[%emt 0:00:41]} 4. e3 {[%emt 0:03:15]} dxe3 {[%emt 0:01:30]} 5. fxe3 {[%emt 0:00:12]} e5 {[%emt 0:00:09]} 6. c5 {[%emt 0:04:00]} Be6 {[%emt 0:01:59]} 7. d4 {[%emt 0:03:33]} e4 {[%emt 0:01:20]} 8. Nfd2 {[%emt 0:02:17]} f5 {[%emt 0:00:58]} 9. Bc4 {[%emt 0:00:57]} Bxc4 {[%emt 0:01:20]} 10. Nxc4 {[%emt 0:00:08]} Qh4+ {[%emt 0:00:25]} 11. g3 {[%emt 0:01:12]} Qg5 {[%emt 0:00:46]} 12. Nc3 {[%emt 0:04:03]} Nf6 {[%emt 0:08:53]} 13. Bd2 {[%emt 0:03:57]} Be7 {[%emt 0:05:49]} 14. Qb3 {[%emt 0:03:25]} Nbd7 {[%emt 0:01:53]} 15. Nb5 {[%emt 0:03:20]} Kd8 {[%emt 0:07:54]} 16. O-O-O {[%emt 0:06:33]} a6 {[%emt 0:01:29]} 17. Nc3 {[%emt 0:00:55]} Ng4 {[%emt 0:05:45]} 18. Rdf1 {[%emt 0:04:10]} b5 {[%emt 0:06:11]} 19. cxb6 {[%emt 0:01:27]} cxb6 {[%emt 0:00:19]} 20. Nd5 {[%emt 0:02:40]} b5 {[%emt 0:07:43]} 21. Na5 {[%emt 0:01:52]} Bd6 {[%emt 0:01:47]} 22. Nb7+ {[%emt 0:00:43]} Kc8 {[%emt 0:02:39]} 23. Nxd6+ {[%emt 0:00:25]} Kb8 {[%emt 0:00:09]} 24. Kb1 {[%emt 0:04:25]} Rf8 {[%emt 0:01:12]} 25. Qc2 {[%emt 0:02:46]} Ra7 {[%emt 0:00:13]} 26. Rxf5 {[%emt 0:01:22]} Qd8 {[%emt 0:01:34]} 27. Rxf8 {[%emt 0:10:21]} Nxf8 {[%emt 0:00:39]} 28. Rc1 {[%emt 0:00:12]} Rd7 {[%emt 0:01:24]} 29. Qc8+ {[%emt 0:00:24]} Qxc8 {[%emt 0:00:39]} 30. Rxc8+ {[%emt 0:00:04]} Ka7 {[%emt 0:00:07]} 31. Rxf8 {[%emt 0:00:26]} Rxd6 {[%emt 0:00:10]} 32. Rf7+ {[%emt 0:00:19]} Kb8 {[%emt 0:00:31]} 33. Nc3 {[%emt 0:00:05]} Nxh2 {[%emt 0:02:46]} 34. Nxe4 {[%emt 0:01:25]} Rg6 {[%emt 0:00:13]} 35. Kc2 {[%emt 0:00:30]} h5 {[%emt 0:00:27]} 36. Kd3 {[%emt 0:00:30]} Ng4 {[%emt 0:00:57]} 37. Rf5 {[%emt 0:01:44]} Rh6 {[%emt 0:00:30]} 38. Nc5 {[%emt 0:03:17]} g6 {[%emt 0:04:54]} 39. Rf7 {[%emt 0:00:37]} g5 {[%emt 0:02:28]} 40. Rg7 {[%emt 0:02:05]} h4 {[%emt 0:01:32]} 41. gxh4 {[%emt 0:00:15]} Rxh4 {[%emt 0:06:57]} 42. Rxg5 {[%emt 0:00:45]} Nf2+ {[%emt 0:00:18]} 43. Kc2 {[%emt 0:00:22]} Rh2 {[%emt 0:00:11]} 44. Rg7 {[%emt 0:01:20]} Ka8 {[%emt 0:04:00]} 45. Rg6 {[%emt 0:01:31]} Ka7 {[%emt 0:00:23]} 46. Rxa6+ {[%emt 0:00:11]} Kb8 {[%emt 0:00:07]} 47. Rg6 {[%emt 0:02:25]} Ka8 {[%emt 0:00:10]} 48. d5 {[%emt 0:00:39]} Ka7 {[%emt 0:01:52]} 49. d6 {[%emt 0:00:23]} Nd1 {[%emt 0:01:30]} 50. Kxd1 {[%emt 0:00:42]} Rh1+ {[%emt 0:01:23]} 51. Kc2 {[%emt 0:00:09]} Ra1 {[%emt 0:00:06]} 52. d7 {[%emt 0:00:51]} Rxa2+ {[%emt 0:00:17]} 53. Kd3 {[%emt 0:00:07]} Ra1 {[%emt 0:01:05]} 54. Ra6+ {[%emt 0:00:24]} Rxa6 {[%emt 0:00:10]} 55. Nxa6 {[%emt 0:00:04]} Kxa6 {[%emt 0:00:46]} 56. d8=Q {[%emt 0:00:04]} 1-0

[Event "Marshall CC U2400 February 2024"]
[Site "New York"]
[Date "2024.02.17"]
[Round "2.1"]
[White "Jiang, Jason"]
[Black "Knowles, Chase"]
[Result "1-0"]
[ECO "D10"]
[WhiteElo "1864"]
[BlackElo "1941"]
[Annotator "NA RC"]
[PlyCount "119"]
[EventDate "2024.02.16"]
[EventType "swiss"]
[EventCountry "USA"]
[SourceTitle "playchess.com"]
[Source "ChessBase"]
[SourceQuality "1"]
[TimeControl "5400+30"]

1. c4 {[%emt 0:01:29]} c6 {[%emt 0:02:14]} 2. Nc3 {[%emt 0:00:21]} d5 {[%emt 0:00:32]} 3. cxd5 {[%emt 0:00:16]} cxd5 {[%emt 0:00:06]} 4. d4 {[%emt 0:00:06]} Nf6 {[%emt 0:00:10]} 5. Bf4 {[%emt 0:01:09]} Nc6 {[%emt 0:00:43]} 6. e3 {[%emt 0:00:53]} a6 {[%emt 0:00:15]} 7. Bd3 {[%emt 0:02:41]} Bg4 {[%emt 0:00:40]} 8. Nge2 {[%emt 0:04:00]} e6 {[%emt 0:00:33]} 9. Rc1 {[%emt 0:06:06]} Be7 {[%emt 0:06:50]} 10. O-O {[%emt 0:07:17]} O-O {[%emt 0:00:33]} 11. Na4 {[%emt 0:03:25]} Rc8 {[%emt 0:03:41]} 12. f3 {[%emt 0:10:26]} Bh5 {[%emt 0:01:14]} 13. Nc5 {[%emt 0:01:57]} Bxc5 {[%emt 0:07:44]} 14. Rxc5 {[%emt 0:01:49]} Bg6 {[%emt 0:06:48]} 15. Bxg6 {[%emt 0:02:50]} hxg6 {[%emt 0:01:08]} 16. Qd2 {[%emt 0:01:16]} Nh5 {[%emt 0:05:12]} 17. Rfc1 {[%emt 0:00:57]} Nxf4 {[%emt 0:01:09]} 18. Nxf4 {[%emt 0:00:15]} Ne7 {[%emt 0:02:34]} 19. Nd3 {[%emt 0:02:32]} Qb6 {[%emt 0:09:13]} 20. R1c3 {[%emt 0:05:59]} Rc6 {[%emt 0:12:28]} 21. Rb3 {[%emt 0:13:07]} Qc7 {[%emt 0:00:50]} 22. Qb4 {[%emt 0:04:11]} b5 {[%emt 0:10:26]} 23. Rbc3 {[%emt 0:04:13]} Qb7 {[%emt 0:06:14]} 24. Qa5 {[%emt 0:07:40]} Rfc8 {[%emt 0:11:31]} 25. Nb4 {[%emt 0:05:14]} Rb6 {[%emt 0:00:58]} 26. a3 {[%emt 0:03:14]} Nc6 {[%emt 0:01:04]} 27. Nxc6 {[%emt 0:00:11]} Rbxc6 {[%emt 0:00:15]} 28. b4 {[%emt 0:00:59]} f6 {[%emt 0:04:14]} 29. Rxc6 {[%emt 0:04:35]} Rxc6 {[%emt 0:00:12]} 30. Qd8+ {[%emt 0:00:11]} Kf7 {[%emt 0:01:14]} 31. Rc5 {[%emt 0:00:22]} g5 {[%emt 0:02:21]} 32. Kf2 {[%emt 0:00:17]} Rxc5 {[%emt 0:02:15]} 33. dxc5 {[%emt 0:00:07]} Qc6 {[%emt 0:00:07]} 34. Qb6 {[%emt 0:00:21]} Qc8 {[%emt 0:00:09]} 35. Qd6 {[%emt 0:01:32]} Qb7 {[%emt 0:01:21]} 36. c6 {[%emt 0:00:52]} Qc8 {[%emt 0:00:05]} 37. c7 {[%emt 0:01:36]} Ke8 {[%emt 0:00:20]} 38. Ke2 {[%emt 0:00:23]} e5 {[%emt 0:00:56]} 39. Qxd5 {[%emt 0:01:46]} Qxc7 {[%emt 0:00:34]} 40. Qg8+ {[%emt 0:00:05]} Kd7 {[%emt 0:00:12]} 41. Qxg7+ {[%emt 0:00:04]} Kc8 {[%emt 0:00:27]} 42. Qxc7+ {[%emt 0:00:24]} Kxc7 {[%emt 0:00:03]} 43. e4 {[%emt 0:01:17]} Kd6 {[%emt 0:00:27]} 44. g3 {[%emt 0:00:21]} Ke6 {[%emt 0:00:52]} 45. h4 {[%emt 0:00:40]} gxh4 {[%emt 0:00:19]} 46. gxh4 {[%emt 0:00:05]} Kf7 {[%emt 0:00:05]} 47. f4 {[%emt 0:00:49]} Kg6 {[%emt 0:01:37]} 48. fxe5 {[%emt 0:00:09]} fxe5 {[%emt 0:01:35]} 49. Kf3 {[%emt 0:00:04]} Kh5 {[%emt 0:00:00]} 50. Kg3 {[%emt 0:00:02]} Kh6 {[%emt 0:00:00]} 51. Kg4 {[%emt 0:00:02]} Kg6 {[%emt 0:00:00]} 52. h5+ {[%emt 0:00:07]} Kh6 {[%emt 0:00:00]} 53. Kh4 {[%emt 0:00:05]} Kh7 {[%emt 0:00:12]} 54. Kg5 {[%emt 0:00:03]} Kg7 {[%emt 0:00:04]} 55. h6+ {[%emt 0:00:09]} Kf7 {[%emt 0:00:32]} 56. Kf5 {[%emt 0:00:08]} Kg8 {[%emt 0:00:08]} 57. Kg6 {[%emt 0:00:04]} Kh8 {[%emt 0:00:05]} 58. h7 {[%emt 0:00:19]} a5 {[%emt 0:00:32]} 59. bxa5 {[%emt 0:00:28]} b4 {[%emt 0:00:04]} 60. a6 {[%emt 0:00:03]} 1-0

[Event "Marshall CC U2400 February 2024"]
[Site "New York"]
[Date "2024.02.17"]
[Round "2.2"]
[White "Gutnik, Aleksandr"]
[Black "Kashyap, Mahati B"]
[Result "1-0"]
[ECO "B51"]
[WhiteElo "1956"]
[BlackElo "1341"]
[Annotator "NA RC"]
[PlyCount "79"]
[EventDate "2024.02.16"]
[EventType "swiss"]
[EventCountry "USA"]
[SourceTitle "playchess.com"]
[Source "ChessBase"]
[SourceQuality "1"]
[TimeControl "5400+30"]

1. e4 {[%emt 0:00:08]} c5 {[%emt 0:00:01]} 2. Nf3 {[%emt 0:00:10]} d6 {[%emt 0:00:04]} 3. Bb5+ {[%emt 0:00:17]} Nd7 {[%emt 0:00:07]} 4. O-O {[%emt 0:00:21]} Ngf6 {[%emt 0:00:06]} 5. Re1 {[%emt 0:00:27]} a6 {[%emt 0:00:08]} 6. Bf1 {[%emt 0:00:48]} g6 {[%emt 0:02:00]} 7. c3 {[%emt 0:00:38]} Bg7 {[%emt 0:00:34]} 8. d4 {[%emt 0:00:44]} cxd4 {[%emt 0:00:17]} 9. cxd4 {[%emt 0:00:11]} b5 {[%emt 0:00:53]} 10. a3 {[%emt 0:03:48]} Bb7 {[%emt 0:00:31]} 11. Nc3 {[%emt 0:00:57]} Nb6 {[%emt 0:02:48]} 12. h3 {[%emt 0:01:16]} O-O {[%emt 0:00:20]} 13. d5 {[%emt 0:04:20]} Rc8 {[%emt 0:00:44]} 14. Nd4 {[%emt 0:04:12]} Nfd7 {[%emt 0:03:31]} 15. Be3 {[%emt 0:03:10]} Ne5 {[%emt 0:01:37]} 16. Nce2 {[%emt 0:10:20]} Nec4 {[%emt 0:00:59]} 17. Bc1 {[%emt 0:01:29]} Nd7 {[%emt 0:10:16]} 18. b3 {[%emt 0:01:15]} Ncb6 {[%emt 0:00:32]} 19. Be3 {[%emt 0:00:42]} Nc5 {[%emt 0:00:34]} 20. f3 {[%emt 0:01:55]} a5 {[%emt 0:20:38]} 21. Rc1 {[%emt 0:03:46]} Ba6 {[%emt 0:06:03]} 22. Nc6 {[%emt 0:01:46]} Qd7 {[%emt 0:02:00]} 23. Nxa5 {[%emt 0:02:13]} Bb2 {[%emt 0:01:23]} 24. Rb1 {[%emt 0:02:25]} Bg7 {[%emt 0:10:11]} 25. Nd4 {[%emt 0:06:53]} Be5 {[%emt 0:08:40]} 26. Qd2 {[%emt 0:03:23]} Rfe8 {[%emt 0:00:39]} 27. Nac6 {[%emt 0:01:08]} Bg7 {[%emt 0:09:18]} 28. Nb4 {[%emt 0:01:21]} Bxd4 {[%emt 0:01:25]} 29. Bxd4 {[%emt 0:00:24]} Bb7 {[%emt 0:00:20]} 30. Qe2 {[%emt 0:04:46]} Na6 {[%emt 0:04:49]} 31. Bxb6 {[%emt 0:00:59]} Nxb4 {[%emt 0:00:18]} 32. axb4 {[%emt 0:00:11]} Rb8 {[%emt 0:01:13]} 33. Bd4 {[%emt 0:00:24]} Ba6 {[%emt 0:00:34]} 34. Rec1 {[%emt 0:00:27]} Rec8 {[%emt 0:00:11]} 35. Qe3 {[%emt 0:00:40]} Rxc1 {[%emt 0:00:29]} 36. Rxc1 {[%emt 0:00:14]} f6 {[%emt 0:00:07]} 37. h4 {[%emt 0:02:37]} Rc8 {[%emt 0:00:58]} 38. Rxc8+ {[%emt 0:00:14]} Qxc8 {[%emt 0:00:10]} 39. Qc3 {[%emt 0:00:21]} Qxc3 {[%emt 0:00:09]} 40. Bxc3 {[%emt 0:00:12]} 1-0